[Event "Titled Tuesday Blitz March 22 Late 2022"]
[White "Perez Torres, Nabi Isaias"]
[Black "Hambleton, Aman"]
[WhiteFideId "5120373"]
[BlackFideId "2606577"]
[WhiteElo "1755"]
[BlackElo "2552"]
[Result "0-1"]
[Round "06"]
[TimeControl "180+1"]
[Date "2022.03.22"]
[WhiteClock "0:00:01"]
[BlackClock "0:00:01"]

1. d4 {[%clk 0:03:00]}  Nf6 {[%clk 0:02:58]} 2. c4 {[%clk 0:03:00]}  e6 {[%clk 0:02:58]} 3. Nf3 {[%clk 0:03:00]}  b6 {[%clk 0:02:58]} 4. a3 {[%clk 0:02:59]}  Bb7 {[%clk 0:02:56]} 5. Nc3 {[%clk 0:03:00]}  g6 {[%clk 0:02:56]} 6. Qc2 {[%clk 0:02:59]}  Bxf3 {[%clk 0:02:56]} 7. gxf3 {[%clk 0:02:57]}  d5 {[%clk 0:02:54]} 8. e4 {[%clk 0:02:43]}  c6 {[%clk 0:01:49]} 9. e5 {[%clk 0:02:21]}  Nh5 {[%clk 0:01:45]} 10. h4 {[%clk 0:02:15]}  Be7 {[%clk 0:01:40]} 11. cxd5 {[%clk 0:01:52]}  cxd5 {[%clk 0:01:40]} 12. Bh6 {[%clk 0:01:36]}  a6 {[%clk 0:01:01]} 13. f4 {[%clk 0:01:28]}  Nc6 {[%clk 0:00:33]} 14. O-O-O {[%clk 0:01:17]}  Rg8 {[%clk 0:00:28]} 15. Kb1 {[%clk 0:01:09]}  Qd7 {[%clk 0:00:11]} 16. Bh3 {[%clk 0:01:03]}  Ng7 {[%clk 0:00:06]} 17. Bg5 {[%clk 0:00:57]}  Rh8 {[%clk 0:00:02]} 18. Ne4 {[%clk 0:00:48]}  dxe4 {[%clk 0:00:02]} 19. d5 {[%clk 0:00:48]}  Rc8 {[%clk 0:00:01]} 20. dxe6 {[%clk 0:00:44]}  Nxe6 {[%clk 0:00:01]} 21. Rxd7 {[%clk 0:00:43]}  Kxd7 {[%clk 0:00:02]} 22. Rd1+ {[%clk 0:00:42]}  Ke8 {[%clk 0:00:02]} 23. Bxe6 {[%clk 0:00:40]}  fxe6 {[%clk 0:00:02]} 24. Qxe4 {[%clk 0:00:40]}  h6 {[%clk 0:00:01]} 25. Bxe7 {[%clk 0:00:40]}  Nxe7 {[%clk 0:00:02]} 26. Qa4+ {[%clk 0:00:37]}  Kf7 {[%clk 0:00:02]} 27. Rd7 {[%clk 0:00:36]}  Rhd8 {[%clk 0:00:01]} 28. Rxd8 {[%clk 0:00:33]}  Rxd8 {[%clk 0:00:02]} 29. Qxa6 {[%clk 0:00:34]}  Nd5 {[%clk 0:00:02]} 30. Qc4 {[%clk 0:00:32]}  Rd7 {[%clk 0:00:02]} 31. b4 {[%clk 0:00:32]}  h5 {[%clk 0:00:02]} 32. a4 {[%clk 0:00:31]}  Ra7 {[%clk 0:00:02]} 33. b5 {[%clk 0:00:19]}  Rxa4 {[%clk 0:00:02]} 34. Qc6 {[%clk 0:00:16]}  Ra7 {[%clk 0:00:02]} 35. Qc8 {[%clk 0:00:09]}  Rc7 {[%clk 0:00:01]} 36. Qh8 {[%clk 0:00:09]}  Ne7 {[%clk 0:00:01]} 37. Qh7+ {[%clk 0:00:09]}  Ke8 {[%clk 0:00:02]} 38. Qg7 {[%clk 0:00:08]}  Rc5 {[%clk 0:00:02]} 39. Qf6 {[%clk 0:00:08]}  Kd7 {[%clk 0:00:02]} 40. Qf7 {[%clk 0:00:05]}  Rxb5+ {[%clk 0:00:03]} 41. Kc2 {[%clk 0:00:05]}  Rc5+ {[%clk 0:00:03]} 42. Kd2 {[%clk 0:00:06]}  Rc8 {[%clk 0:00:03]} 43. Qf6 {[%clk 0:00:03]}  b5 {[%clk 0:00:04]} 44. Qg5 {[%clk 0:00:03]}  b4 {[%clk 0:00:03]} 45. Qg3 {[%clk 0:00:04]}  Rb8 {[%clk 0:00:03]} 46. Qb3 {[%clk 0:00:04]}  Ke8 {[%clk 0:00:03]} 47. Ke3 {[%clk 0:00:04]}  Kf7 {[%clk 0:00:03]} 48. Ke4 {[%clk 0:00:05]}  Rb7 {[%clk 0:00:03]} 49. f3 {[%clk 0:00:04]}  Nd5 {[%clk 0:00:03]} 50. Kd4 {[%clk 0:00:03]}  Nxf4 {[%clk 0:00:03]} 51. Kc5 {[%clk 0:00:03]}  Nd5 {[%clk 0:00:03]} 52. Kd6 {[%clk 0:00:04]}  Rb8 {[%clk 0:00:03]} 53. f4 {[%clk 0:00:04]}  Rb7 {[%clk 0:00:02]} 54. Kc6 {[%clk 0:00:04]}  Rb6+ {[%clk 0:00:02]} 55. Kc5 {[%clk 0:00:04]}  Rb8 {[%clk 0:00:02]} 56. Kd6 {[%clk 0:00:04]}  Ne7 {[%clk 0:00:03]} 57. f5 {[%clk 0:00:04]}  Nxf5+ {[%clk 0:00:03]} 58. Kc5 {[%clk 0:00:03]}  Nxh4 {[%clk 0:00:03]} 59. Kd6 {[%clk 0:00:02]}  Nf5+ {[%clk 0:00:03]} 60. Kc7 {[%clk 0:00:02]}  Rb5 {[%clk 0:00:02]} 61. Qd3 {[%clk 0:00:01]}  Rd5 {[%clk 0:00:01]} 0-1


[Site "https://www.chess.com"]

[Event "Titled Tuesday Blitz March 22 Late 2022"]
[White "Petrova, Irina"]
[Black "Rudykh, Stepan"]
[WhiteFideId "14124122"]
[BlackFideId "4180321"]
[WhiteElo "1993"]
[BlackElo "2140"]
[Result "0-1"]
[Round "06"]
[TimeControl "180+1"]
[Date "2022.03.22"]
[WhiteClock "0:00:10"]
[BlackClock "0:00:42"]

1. e4 {[%clk 0:03:00]}  e6 {[%clk 0:03:00]} 2. d4 {[%clk 0:02:59]}  d5 {[%clk 0:03:01]} 3. Nc3 {[%clk 0:02:58]}  Bb4 {[%clk 0:03:01]} 4. Ne2 {[%clk 0:02:58]}  dxe4 {[%clk 0:02:57]} 5. a3 {[%clk 0:02:57]}  Bxc3+ {[%clk 0:02:56]} 6. Nxc3 {[%clk 0:02:58]}  c5 {[%clk 0:02:49]} 7. Bb5+ {[%clk 0:02:13]}  Nc6 {[%clk 0:02:41]} 8. Bxc6+ {[%clk 0:02:11]}  bxc6 {[%clk 0:02:39]} 9. dxc5 {[%clk 0:02:11]}  Qxd1+ {[%clk 0:02:35]} 10. Kxd1 {[%clk 0:02:12]}  f5 {[%clk 0:02:32]} 11. Bf4 {[%clk 0:01:58]}  Nf6 {[%clk 0:02:26]} 12. Ke2 {[%clk 0:01:48]}  Ba6+ {[%clk 0:02:23]} 13. Ke1 {[%clk 0:01:46]}  O-O {[%clk 0:02:10]} 14. Rd1 {[%clk 0:01:43]}  Rfd8 {[%clk 0:02:05]} 15. Rd6 {[%clk 0:01:42]}  Rxd6 {[%clk 0:02:01]} 16. Bxd6 {[%clk 0:01:39]}  g5 {[%clk 0:01:44]} 17. h4 {[%clk 0:01:37]}  h6 {[%clk 0:01:38]} 18. hxg5 {[%clk 0:01:36]}  hxg5 {[%clk 0:01:39]} 19. Be5 {[%clk 0:01:30]}  Kf7 {[%clk 0:01:35]} 20. Rh6 {[%clk 0:01:16]}  Ng4 {[%clk 0:01:27]} 21. Rh7+ {[%clk 0:01:00]}  Kg6 {[%clk 0:01:27]} 22. Rh8 {[%clk 0:00:51]}  Rxh8 {[%clk 0:01:21]} 23. Bxh8 {[%clk 0:00:52]}  e5 {[%clk 0:01:17]} 24. f3 {[%clk 0:00:45]}  exf3 {[%clk 0:01:17]} 25. gxf3 {[%clk 0:00:46]}  Nh2 {[%clk 0:01:17]} 26. Kf2 {[%clk 0:00:40]}  e4 {[%clk 0:01:16]} 27. fxe4 {[%clk 0:00:37]}  f4 {[%clk 0:01:16]} 28. e5 {[%clk 0:00:31]}  Bc4 {[%clk 0:01:12]} 29. Ne4 {[%clk 0:00:25]}  g4 {[%clk 0:01:08]} 30. b3 {[%clk 0:00:17]}  Be6 {[%clk 0:01:01]} 31. a4 {[%clk 0:00:15]}  Bf5 {[%clk 0:00:57]} 32. Nd6 {[%clk 0:00:14]}  Bxc2 {[%clk 0:00:57]} 33. e6 {[%clk 0:00:14]}  Bxb3 {[%clk 0:00:52]} 34. e7 {[%clk 0:00:15]}  Bf7 {[%clk 0:00:52]} 35. Be5 {[%clk 0:00:12]}  g3+ {[%clk 0:00:47]} 36. Kg2 {[%clk 0:00:11]}  Bd5+ {[%clk 0:00:47]} 37. Kh3 {[%clk 0:00:10]}  Be6+ {[%clk 0:00:45]} 38. Kg2 {[%clk 0:00:10]}  Bd5+ {[%clk 0:00:45]} 39. Kh3 {[%clk 0:00:09]}  Be6+ {[%clk 0:00:44]} 40. Kh4 {[%clk 0:00:10]}  Nf3# {[%clk 0:00:42]} 0-1


[Site "https://www.chess.com"]

[Event "Titled Tuesday Blitz March 22 Late 2022"]
[White "Pichot, Alan"]
[Black "Goryachkina, Aleksandra"]
[WhiteFideId "110973"]
[BlackFideId "4147103"]
[WhiteElo "2579"]
[BlackElo "2426"]
[Result "1-0"]
[Round "06"]
[TimeControl "180+1"]
[Date "2022.03.22"]
[WhiteClock "0:00:02"]
[BlackClock "0:00:03"]

1. d4 {[%clk 0:01:13]}  Nf6 {[%clk 0:02:58]} 2. Nf3 {[%clk 0:01:09]}  d5 {[%clk 0:02:58]} 3. c3 {[%clk 0:01:09]}  g6 {[%clk 0:02:55]} 4. Bf4 {[%clk 0:01:10]}  Bg7 {[%clk 0:02:55]} 5. h3 {[%clk 0:01:10]}  O-O {[%clk 0:02:53]} 6. e3 {[%clk 0:01:11]}  c5 {[%clk 0:02:48]} 7. Bh2 {[%clk 0:01:12]}  Nc6 {[%clk 0:02:48]} 8. Nbd2 {[%clk 0:01:11]}  Nd7 {[%clk 0:02:43]} 9. Be2 {[%clk 0:01:09]}  e5 {[%clk 0:02:42]} 10. dxe5 {[%clk 0:01:07]}  Ndxe5 {[%clk 0:02:42]} 11. O-O {[%clk 0:01:08]}  Be6 {[%clk 0:02:32]} 12. Qa4 {[%clk 0:01:06]}  Qb6 {[%clk 0:02:20]} 13. Qb3 {[%clk 0:01:04]}  Nxf3+ {[%clk 0:02:14]} 14. Nxf3 {[%clk 0:01:02]}  d4 {[%clk 0:02:11]} 15. Qxb6 {[%clk 0:01:00]}  axb6 {[%clk 0:02:11]} 16. cxd4 {[%clk 0:00:55]}  cxd4 {[%clk 0:02:11]} 17. exd4 {[%clk 0:00:48]}  Nxd4 {[%clk 0:02:09]} 18. Nxd4 {[%clk 0:00:49]}  Bxd4 {[%clk 0:02:09]} 19. Rfd1 {[%clk 0:00:43]}  Bxb2 {[%clk 0:02:03]} 20. Rab1 {[%clk 0:00:44]}  Bf6 {[%clk 0:01:35]} 21. Rxb6 {[%clk 0:00:40]}  Rxa2 {[%clk 0:01:34]} 22. Bf3 {[%clk 0:00:39]}  Rd8 {[%clk 0:01:14]} 23. Rf1 {[%clk 0:00:31]}  Rdd2 {[%clk 0:00:55]} 24. Rxb7 {[%clk 0:00:25]}  Bc4 {[%clk 0:00:50]} 25. Rc1 {[%clk 0:00:20]}  Bd4 {[%clk 0:00:35]} 26. Bf4 {[%clk 0:00:15]}  Rxf2 {[%clk 0:00:25]} 27. Kh1 {[%clk 0:00:16]}  Rxf3 {[%clk 0:00:02]} 28. gxf3 {[%clk 0:00:13]}  Bd5 {[%clk 0:00:02]} 29. Rb8+ {[%clk 0:00:07]}  Kg7 {[%clk 0:00:03]} 30. Rf1 {[%clk 0:00:07]}  Bc4 {[%clk 0:00:03]} 31. Rd1 {[%clk 0:00:03]}  Bf6 {[%clk 0:00:03]} 32. Bd6 {[%clk 0:00:03]}  h5 {[%clk 0:00:02]} 33. Bf8+ {[%clk 0:00:02]}  Kh7 {[%clk 0:00:02]} 34. Bc5 {[%clk 0:00:02]}  Be2 {[%clk 0:00:03]} 35. Re1 {[%clk 0:00:02]}  Bxf3+ {[%clk 0:00:03]} 36. Kg1 {[%clk 0:00:03]}  Bh4 {[%clk 0:00:03]} 37. Bd4 {[%clk 0:00:02]}  f6 {[%clk 0:00:02]} 38. Re7+ {[%clk 0:00:02]}  Kh6 {[%clk 0:00:03]} 39. Be3+ {[%clk 0:00:02]} 1-0


[Site "https://www.chess.com"]

[Event "Titled Tuesday Blitz March 22 Late 2022"]
[White "Przybylski, Wojciech"]
[Black "Svicevic, Rastko"]
[WhiteFideId "1117599"]
[BlackFideId "916315"]
[WhiteElo "2133"]
[BlackElo "2132"]
[Result "1-0"]
[Round "06"]
[TimeControl "180+1"]
[Date "2022.03.22"]
[WhiteClock "0:00:58"]
[BlackClock "0:00:02"]

1. e4 {[%clk 0:03:00]}  c6 {[%clk 0:02:59]} 2. d4 {[%clk 0:02:59]}  d5 {[%clk 0:02:59]} 3. exd5 {[%clk 0:02:59]}  cxd5 {[%clk 0:02:59]} 4. Bd3 {[%clk 0:03:00]}  Nc6 {[%clk 0:02:58]} 5. c3 {[%clk 0:03:00]}  e6 {[%clk 0:02:56]} 6. Nf3 {[%clk 0:02:59]}  Bd6 {[%clk 0:02:56]} 7. O-O {[%clk 0:02:59]}  Nge7 {[%clk 0:02:54]} 8. Bg5 {[%clk 0:02:59]}  f6 {[%clk 0:02:53]} 9. Bd2 {[%clk 0:02:58]}  O-O {[%clk 0:02:52]} 10. Qc2 {[%clk 0:02:56]}  g6 {[%clk 0:02:48]} 11. b4 {[%clk 0:02:55]}  Qc7 {[%clk 0:02:30]} 12. b5 {[%clk 0:02:53]}  Na5 {[%clk 0:02:28]} 13. Bh6 {[%clk 0:02:50]}  Rf7 {[%clk 0:02:26]} 14. Nbd2 {[%clk 0:02:50]}  Nf5 {[%clk 0:02:05]} 15. Be3 {[%clk 0:02:48]}  Nc4 {[%clk 0:02:00]} 16. Nxc4 {[%clk 0:02:48]}  dxc4 {[%clk 0:01:59]} 17. Be2 {[%clk 0:02:46]}  Bd7 {[%clk 0:01:53]} 18. a4 {[%clk 0:02:45]}  a6 {[%clk 0:01:52]} 19. Rab1 {[%clk 0:02:36]}  axb5 {[%clk 0:01:49]} 20. axb5 {[%clk 0:02:37]}  b6 {[%clk 0:01:44]} 21. h3 {[%clk 0:02:28]}  Ra5 {[%clk 0:01:40]} 22. Nd2 {[%clk 0:02:26]}  Bxb5 {[%clk 0:01:27]} 23. Rxb5 {[%clk 0:02:25]}  Rxb5 {[%clk 0:01:24]} 24. Bxc4 {[%clk 0:02:25]}  Qd7 {[%clk 0:01:05]} 25. Bxb5 {[%clk 0:02:13]}  Qxb5 {[%clk 0:01:06]} 26. c4 {[%clk 0:02:14]}  Qc6 {[%clk 0:01:04]} 27. Qb3 {[%clk 0:02:09]}  Kg7 {[%clk 0:00:56]} 28. d5 {[%clk 0:02:02]}  exd5 {[%clk 0:00:52]} 29. cxd5 {[%clk 0:02:01]}  Qb7 {[%clk 0:00:46]} 30. Bxb6 {[%clk 0:01:57]}  Rd7 {[%clk 0:00:31]} 31. Ne4 {[%clk 0:01:51]}  Be5 {[%clk 0:00:29]} 32. Rd1 {[%clk 0:01:46]}  Nd4 {[%clk 0:00:19]} 33. Qa4 {[%clk 0:01:16]}  Qxd5 {[%clk 0:00:17]} 34. Nc3 {[%clk 0:01:14]}  Ne2+ {[%clk 0:00:15]} 35. Kf1 {[%clk 0:01:13]}  Nxc3 {[%clk 0:00:07]} 36. Rxd5 {[%clk 0:01:12]}  Rxd5 {[%clk 0:00:06]} 37. Qa7+ {[%clk 0:01:10]}  Kh6 {[%clk 0:00:05]} 38. Be3+ {[%clk 0:01:09]}  g5 {[%clk 0:00:04]} 39. g3 {[%clk 0:01:07]}  Rd1+ {[%clk 0:00:04]} 40. Kg2 {[%clk 0:01:07]}  Nd5 {[%clk 0:00:04]} 41. Bc5 {[%clk 0:01:01]}  Rd2 {[%clk 0:00:02]} 42. Bf8+ {[%clk 0:00:58]} 1-0


[Site "https://www.chess.com"]

[Event "Titled Tuesday Blitz March 22 Late 2022"]
[White "Reprintsev, Alexander"]
[Black "Maltsevskaya, Aleksandra"]
[WhiteFideId "14100541"]
[BlackFideId "24174041"]
[WhiteElo "2108"]
[BlackElo "2241"]
[Result "1-0"]
[Round "06"]
[TimeControl "180+1"]
[Date "2022.03.22"]
[WhiteClock "0:00:25"]
[BlackClock "0:00:04"]

1. e4 {[%clk 0:03:00]}  c5 {[%clk 0:02:57]} 2. b3 {[%clk 0:03:00]}  Nc6 {[%clk 0:02:55]} 3. Bb2 {[%clk 0:03:00]}  b6 {[%clk 0:02:55]} 4. Nf3 {[%clk 0:02:56]}  Bb7 {[%clk 0:02:55]} 5. d4 {[%clk 0:02:56]}  cxd4 {[%clk 0:02:55]} 6. Nxd4 {[%clk 0:02:56]}  e6 {[%clk 0:02:48]} 7. Nb5 {[%clk 0:02:44]}  Qb8 {[%clk 0:02:24]} 8. N1c3 {[%clk 0:02:38]}  a6 {[%clk 0:02:12]} 9. Nd4 {[%clk 0:02:33]}  Nf6 {[%clk 0:02:06]} 10. Nxc6 {[%clk 0:02:25]}  Bxc6 {[%clk 0:02:03]} 11. Bd3 {[%clk 0:02:23]}  h5 {[%clk 0:01:52]} 12. Qd2 {[%clk 0:02:19]}  Bb4 {[%clk 0:01:41]} 13. a3 {[%clk 0:02:15]}  Bc5 {[%clk 0:01:36]} 14. O-O-O {[%clk 0:02:14]}  Ng4 {[%clk 0:01:27]} 15. Rdf1 {[%clk 0:01:56]}  Nxh2 {[%clk 0:01:27]} 16. Re1 {[%clk 0:01:53]}  Ng4 {[%clk 0:01:26]} 17. Rhf1 {[%clk 0:01:52]}  b5 {[%clk 0:01:19]} 18. f3 {[%clk 0:01:33]}  Ne5 {[%clk 0:01:18]} 19. Be2 {[%clk 0:01:28]}  a5 {[%clk 0:01:14]} 20. Nd1 {[%clk 0:01:27]}  b4 {[%clk 0:01:13]} 21. a4 {[%clk 0:01:26]}  f6 {[%clk 0:01:11]} 22. Ne3 {[%clk 0:01:20]}  Qb6 {[%clk 0:01:06]} 23. Nc4 {[%clk 0:01:16]}  Nxc4 {[%clk 0:01:06]} 24. Bxc4 {[%clk 0:01:17]}  O-O-O {[%clk 0:01:06]} 25. Kb1 {[%clk 0:01:16]}  h4 {[%clk 0:01:04]} 26. f4 {[%clk 0:01:03]}  Kb7 {[%clk 0:01:03]} 27. f5 {[%clk 0:01:01]}  e5 {[%clk 0:00:33]} 28. Qe2 {[%clk 0:00:54]}  Rh5 {[%clk 0:00:19]} 29. Qxh5 {[%clk 0:00:49]}  Bd4 {[%clk 0:00:16]} 30. Bxd4 {[%clk 0:00:43]}  exd4 {[%clk 0:00:15]} 31. Qxh4 {[%clk 0:00:39]}  Rc8 {[%clk 0:00:14]} 32. Qf2 {[%clk 0:00:37]}  Bxa4 {[%clk 0:00:12]} 33. Rd1 {[%clk 0:00:36]}  Rxc4 {[%clk 0:00:08]} 34. bxc4 {[%clk 0:00:35]}  b3 {[%clk 0:00:09]} 35. cxb3 {[%clk 0:00:30]}  Bxb3 {[%clk 0:00:09]} 36. Qxd4 {[%clk 0:00:26]}  Qb4 {[%clk 0:00:04]} 37. Qxd7+ {[%clk 0:00:25]} 1-0


[Site "https://www.chess.com"]

[Event "Titled Tuesday Blitz March 22 Late 2022"]
[White "Rostovtsev, Dmitry"]
[Black "Martin Barcelo, Carles"]
[WhiteFideId "34278320"]
[BlackFideId "24561444"]
[WhiteElo "2359"]
[BlackElo "1875"]
[Result "1-0"]
[Round "06"]
[TimeControl "180+1"]
[Date "2022.03.22"]
[WhiteClock "0:02:20"]
[BlackClock "0:01:04"]

1. e4 {[%clk 0:03:00]}  c6 {[%clk 0:02:57]} 2. d4 {[%clk 0:02:58]}  d5 {[%clk 0:02:56]} 3. e5 {[%clk 0:02:59]}  c5 {[%clk 0:02:56]} 4. dxc5 {[%clk 0:02:59]}  e6 {[%clk 0:02:56]} 5. a3 {[%clk 0:02:59]}  Bxc5 {[%clk 0:02:51]} 6. Qg4 {[%clk 0:02:59]}  Ne7 {[%clk 0:02:47]} 7. Bd3 {[%clk 0:02:58]}  O-O {[%clk 0:02:35]} 8. Nf3 {[%clk 0:02:56]}  Nbc6 {[%clk 0:02:28]} 9. Bxh7+ {[%clk 0:02:29]}  Kh8 {[%clk 0:01:07]} 10. Qh5 {[%clk 0:02:20]}  g6 {[%clk 0:01:04]} 11. Bxg6+ {[%clk 0:02:20]} 1-0


[Site "https://www.chess.com"]

[Event "Titled Tuesday Blitz March 22 Late 2022"]
[White "Rustemov, Alexander"]
[Black "Matlakov, Maxim"]
[WhiteFideId "4119002"]
[BlackFideId "4168003"]
[WhiteElo "2798"]
[BlackElo "2669"]
[Result "0-1"]
[Round "06"]
[TimeControl "180+1"]
[Date "2022.03.22"]
[WhiteClock "0:00:02"]
[BlackClock "0:00:42"]

1. d4 {[%clk 0:03:00]}  d5 {[%clk 0:03:00]} 2. c4 {[%clk 0:03:01]}  e6 {[%clk 0:02:59]} 3. Nc3 {[%clk 0:03:01]}  Nf6 {[%clk 0:02:59]} 4. cxd5 {[%clk 0:03:01]}  exd5 {[%clk 0:02:59]} 5. Bg5 {[%clk 0:03:01]}  c6 {[%clk 0:02:59]} 6. e3 {[%clk 0:03:01]}  Bd6 {[%clk 0:02:59]} 7. Bd3 {[%clk 0:03:00]}  O-O {[%clk 0:02:59]} 8. Qc2 {[%clk 0:03:00]}  h6 {[%clk 0:02:59]} 9. Bh4 {[%clk 0:02:59]}  Re8 {[%clk 0:02:59]} 10. Nf3 {[%clk 0:02:57]}  Bg4 {[%clk 0:02:57]} 11. O-O {[%clk 0:02:52]}  Nbd7 {[%clk 0:02:48]} 12. Bg3 {[%clk 0:02:48]}  Bxg3 {[%clk 0:02:47]} 13. hxg3 {[%clk 0:02:47]}  Qe7 {[%clk 0:02:46]} 14. Rab1 {[%clk 0:02:46]}  Ne4 {[%clk 0:02:41]} 15. Bxe4 {[%clk 0:02:38]}  dxe4 {[%clk 0:02:41]} 16. Nd2 {[%clk 0:02:38]}  Nf6 {[%clk 0:02:32]} 17. b4 {[%clk 0:02:37]}  Rac8 {[%clk 0:02:28]} 18. Rfc1 {[%clk 0:02:35]}  h5 {[%clk 0:02:25]} 19. b5 {[%clk 0:02:21]}  cxb5 {[%clk 0:02:24]} 20. Rxb5 {[%clk 0:02:17]}  b6 {[%clk 0:02:24]} 21. Re5 {[%clk 0:02:06]}  Qa3 {[%clk 0:02:16]} 22. Rxe8+ {[%clk 0:01:57]}  Rxe8 {[%clk 0:02:17]} 23. Nb5 {[%clk 0:01:33]}  Qe7 {[%clk 0:01:29]} 24. Qc7 {[%clk 0:01:28]}  Qe6 {[%clk 0:01:27]} 25. Qxa7 {[%clk 0:01:23]}  Rc8 {[%clk 0:01:18]} 26. Rxc8+ {[%clk 0:01:21]}  Qxc8 {[%clk 0:01:19]} 27. Qc7 {[%clk 0:01:19]}  Qa6 {[%clk 0:01:18]} 28. Nd6 {[%clk 0:01:05]}  Qxa2 {[%clk 0:01:18]} 29. Qc1 {[%clk 0:00:37]}  Qd5 {[%clk 0:01:07]} 30. Qc7 {[%clk 0:00:36]}  Be6 {[%clk 0:00:59]} 31. Qxb6 {[%clk 0:00:34]}  Qa2 {[%clk 0:00:59]} 32. Nf1 {[%clk 0:00:14]}  Bd5 {[%clk 0:00:58]} 33. Qd8+ {[%clk 0:00:10]}  Kh7 {[%clk 0:00:58]} 34. Qe7 {[%clk 0:00:08]}  Ng4 {[%clk 0:00:56]} 35. Nxe4 {[%clk 0:00:04]}  Qc2 {[%clk 0:00:53]} 36. Ng5+ {[%clk 0:00:04]}  Kg6 {[%clk 0:00:53]} 37. Nh3 {[%clk 0:00:02]}  Kh7 {[%clk 0:00:50]} 38. Qg5 {[%clk 0:00:03]}  Nf6 {[%clk 0:00:50]} 39. Nf4 {[%clk 0:00:02]}  Bc4 {[%clk 0:00:48]} 40. e4 {[%clk 0:00:01]}  Qd1 {[%clk 0:00:47]} 41. Nxh5 {[%clk 0:00:02]}  Nxh5 {[%clk 0:00:44]} 42. Kh2 {[%clk 0:00:02]}  Bxf1 {[%clk 0:00:44]} 43. g4 {[%clk 0:00:01]}  Nf6 {[%clk 0:00:43]} 44. Qh4+ {[%clk 0:00:01]}  Kg8 {[%clk 0:00:43]} 45. f3 {[%clk 0:00:02]}  Qxd4 {[%clk 0:00:42]} 0-1


[Site "https://www.chess.com"]

[Event "Titled Tuesday Blitz March 22 Late 2022"]
[White "Saveliev, Alexei"]
[Black "Vovk, Orest"]
[WhiteFideId "24128546"]
[BlackFideId "14113490"]
[WhiteElo "2281"]
[BlackElo "2203"]
[Result "1-0"]
[Round "06"]
[TimeControl "180+1"]
[Date "2022.03.22"]
[WhiteClock "0:00:40"]
[BlackClock "0:00:53"]

1. c4 {[%clk 0:02:57]}  c6 {[%clk 0:02:55]} 2. Nc3 {[%clk 0:02:57]}  d5 {[%clk 0:02:54]} 3. cxd5 {[%clk 0:02:58]}  cxd5 {[%clk 0:02:54]} 4. d4 {[%clk 0:02:59]}  Nf6 {[%clk 0:02:55]} 5. Nf3 {[%clk 0:02:59]}  g6 {[%clk 0:02:53]} 6. Bf4 {[%clk 0:02:59]}  Bg7 {[%clk 0:02:53]} 7. e3 {[%clk 0:03:00]}  O-O {[%clk 0:02:53]} 8. Bd3 {[%clk 0:02:57]}  Bf5 {[%clk 0:02:50]} 9. Bxf5 {[%clk 0:02:52]}  gxf5 {[%clk 0:02:51]} 10. O-O {[%clk 0:02:52]}  e6 {[%clk 0:02:50]} 11. Rc1 {[%clk 0:02:47]}  Ne4 {[%clk 0:02:48]} 12. Qb3 {[%clk 0:02:23]}  Qb6 {[%clk 0:02:42]} 13. Qxb6 {[%clk 0:02:21]}  axb6 {[%clk 0:02:42]} 14. a3 {[%clk 0:02:20]}  Nxc3 {[%clk 0:02:36]} 15. Rxc3 {[%clk 0:02:21]}  Nc6 {[%clk 0:02:36]} 16. Rfc1 {[%clk 0:02:19]}  b5 {[%clk 0:02:36]} 17. h4 {[%clk 0:02:14]}  b4 {[%clk 0:02:35]} 18. axb4 {[%clk 0:02:14]}  Nxb4 {[%clk 0:02:36]} 19. Rb3 {[%clk 0:02:07]}  Nc6 {[%clk 0:02:16]} 20. Rxb7 {[%clk 0:02:06]}  Na5 {[%clk 0:02:17]} 21. Rb5 {[%clk 0:02:03]}  Nc4 {[%clk 0:02:08]} 22. b3 {[%clk 0:02:01]}  Na3 {[%clk 0:02:08]} 23. Rb7 {[%clk 0:02:00]}  Rfc8 {[%clk 0:02:07]} 24. Rxc8+ {[%clk 0:01:48]}  Rxc8 {[%clk 0:02:08]} 25. Ne5 {[%clk 0:01:45]}  Bxe5 {[%clk 0:02:02]} 26. Bxe5 {[%clk 0:01:46]}  h5 {[%clk 0:01:54]} 27. Kh2 {[%clk 0:01:42]}  Nb1 {[%clk 0:01:41]} 28. Kg3 {[%clk 0:01:37]}  Nd2 {[%clk 0:01:37]} 29. Kf4 {[%clk 0:01:28]}  Rf8 {[%clk 0:01:20]} 30. Bd6 {[%clk 0:01:08]}  Rd8 {[%clk 0:01:13]} 31. Be7 {[%clk 0:01:07]}  Ra8 {[%clk 0:01:09]} 32. f3 {[%clk 0:00:58]}  Kg7 {[%clk 0:01:05]} 33. Kg5 {[%clk 0:00:56]}  Nf1 {[%clk 0:01:03]} 34. Bf6+ {[%clk 0:00:52]}  Kg8 {[%clk 0:01:02]} 35. Kf4 {[%clk 0:00:49]}  Ra2 {[%clk 0:00:58]} 36. g4 {[%clk 0:00:41]}  fxg4 {[%clk 0:00:53]} 37. Rb8+ {[%clk 0:00:40]}  Kh7 {[%clk 0:00:53]} 38. Kg5 {[%clk 0:00:40]} 1-0


[Site "https://www.chess.com"]